Workbook

Sheet CONSOLIDADO 2021
B2: PLAN ANUAL DE COMPRAS 2021
B3: UNIDAD O DEPARTAMENTO | D3: PARTIDA PRESUPUESTARIA SIGAF | G3: PARTIDA PRESUPUESTARIA SICOP | I3: Tipo de bien, servicio u obra a contratar | J3: Medida | K3: Cantidad | L3: Costo Unitario | M3: Total | N3: Fuente de Financiamiento
C4: ID Programa y Subprograma | D4: SUBPARTIDA | E4: SUBCLASE | F4: CONSECUTIVO | G4: CLASIFICACION | H4: IDENTIFICACION
B5: Arquitectura | C5: 789-00 | D5: 10403 | E5: 001 | F5: 110901 | G5: 81101505 | H5: 92082930 | I5: CARGA DE CONTRATO CONTRATO POR LOS SERVICIOS DE INGENIERÍA, EJECUCIÓN DE SERVICIOS PRELIMINARES, SERVICIOS BÁSICOS, ANTEPROYECTO Y PLANOS CONSTRUCTIVOS. Tramite concursal 2019LN-000004-0006900001 Número de contrato 0432019000700112-00 Empresa adjudicada ESTRUCONSULT SOCIEDAD ANONIMA | J5: Unidad | K5: 1 | L5: 50000000 | M5: =K5*L5 -> 50000000 | N5: 001-Ingresos corrientes
B6: Arquitectura | C6: 789-00 | D6: 10403 | E6: 001 | F6: 000191 | G6: 77101504 | H6: 92088348 | I6: CARGA DE CONTRATO CONTRATO POR SERVICIOS PROFESIONALES REGENCIA AMBIENTAL DE LAS PLANTAS DE TRATAMIENTO DE AGUAS RESIDUALES DEL SISTEMA PENITENCIARIO NACIONAL por 1 año prorrogable por 3 más Tramite concursal 2017LA-000001-0006900001 contrato 0432017000700033-00 Empresa adjudicada Compañía de Proyectos Ambientales Proamsa | J6: Unidad | K6: 1 | L6: 50000000 | M6: 50000000 | N6: 001-Ingresos corrientes
B7: Arquitectura | C7: 789-00 | D7: 10801 | E7: 020 | F7: 000002 | G7: 72101506 | H7: 92097447 | I7: CARGA DE CONTRATO Contrato para los servicios de mantenimiento preventivo y correctivo de elevadores eléctricos de alimentos ubicados en el Centro de Atención Institución San José Tramite concursal 2019CD-000099-0006900001 contrato 0432019000700113-00 Empresa adjudicada ELEVADORES CENTROAMERICANOS INT. SOCIEDAD ANONIMA | J7: Unidad | K7: 1 | L7: 5644183 | M7: 5644183 | N7: 001-Ingresos corrientes
B8: Arquitectura | C8: 789-00 | D8: 10801 | E8: 060 | F8: 000140 | G8: 72101509 | H8: 92035477 | I8: CARGA DE CONTRATO Nuevo contrato para el mantenimiento preventivo y correctivo de sistemas de detección, supresión y alarma contra incendios en los centros penales. Contrato adjudicado 0432020000700002-00, tramite concursal 2019LN-000012-0006900001 Empresa adjudicada GLOBALTEC TECHNOLOGIES GMZS SOCIEDAD ANONIMA. | J8: Unidad | K8: 1 | L8: 100000000 | M8: =K8*L8 -> 100000000 | N8: 001-Ingresos corrientes
B9: Arquitectura | C9: 789-00 | D9: 10801 | E9: 245 | F9: 000060 | G9: 72154013 | H9: 92027975 | I9: Realizar un tramite concursal para el SERVICIO DE INSTALACIÓN DE ALAMBRE NAVAJA ACERO INOXIDABLE | J9: Unidad | K9: 1 | L9: 27741500 | M9: =K9*L9 -> 27741500 | N9: 001-Ingresos corrientes
B10: Arquitectura | C10: 789-00 | D10: 10801 | E10: 035 | F10: 000005 | G10: 72101507 | H10: 90034579 | I10: Suscribir un nuevo CONTRATO PARA EL MANTENIMIENTO PREVENTIVO Y CORRECTIVO DE PORTONES ELÉCTRICOS Y NO ELÉCTRICOS DEL SISTEMA PENITENCIARIO NACIONAL | J10: Unidad | K10: 1 | L10: 100000000 | M10: 100000000 | N10: 001-Ingresos corrientes
B11: Arquitectura | C11: 789-00 | D11: 10804 | E11: 900 | F11: 002900 | G11: 72154109 | H11: 92154498 | I11: Suscripción de un nuevo Contrato SERVICIO DE MANTENIMIENTO PREVENTIVO Y CORRECTIVO PARA SISTEMA DE BOMBEO DE AGUA | J11: Unidad | K11: 1 | L11: 100000000 | M11: =K11*L11 -> 100000000 | N11: 001-Ingresos corrientes
B12: Arquitectura | C12: 789-00 | D12: 10804 | E12: 900 | F12: 000001 | G12: 81101701 | H12: 92084905 | I12: CARGA DE CONTRATO Suscripción de contrato para los servicios de mantenimiento preventivo y correctivo de generadores eléctricos ubicados en los diferentes Centros de Atención Institucional del Sistema Penitenciario Tramite concursal 2019LN-000005-0006900001 Contrato 0432019000700123-00 Empresa adjudicada TRACTOMOTRIZ SOCIEDAD ANONIMA | J12: Unidad | K12: 1 | L12: 82500542 | M12: 82500542 | N12: 001-Ingresos corrientes
B13: Arquitectura | C13: 789-00 | D13: 10804 | E13: 900 | F13: 100201 | G13: 72121505 | H13: 92105014 | I13: CARGA DE CONTRATO Contrato para el MANTENIMIENTO PREVENTIVO Y CORRECTIVO DE LOS SISTEMA DE AGUAS NEGRAS DEL SISTEMA PENITENCIARIO NACIONAL, trámite concursal 2017LN-000017-0006900001 contrato 0432018000700028-00 Empresa adjudicada DURMAN ESQUIVEL S.A | J13: Unidad | K13: 1 | L13: 304000000 | M13: 304000000 | N13: 001-Ingresos corrientes
B14: Arquitectura | C14: 789-00 | D14: 20101 | E14: 010 | F14: 001320 | G14: 15121501 | H14: 92080156 | I14: ACEITE LUBRICANTE 20W50 PARA MOTOR, UNIDADES TIPO GASOLINA, ÍNDICE DE VISCOSIDAD: 140 CST, EN ENVASES DE 0,946 L (1/4 GALÓN) Marca PEAK Modelo PEAK | J14: unidad | K14: 100 | L14: 1275 | M14: =K14*L14 -> 127500 | N14: 001-Ingresos corrientes
B15: Arquitectura | C15: 789-00 | D15: 20101 | E15: 010 | F15: 000261 | G15: 15121501 | H15: 92047428 | I15: ACEITE LUBRICANTE, 2 TIEMPOS, HD ISO 220, ENVASE 0,94 l, PARA MOTOR FUERA DE BORDA Marca XCEL Modelo TCW3, | J15: unidad | K15: 123 | L15: 1450 | M15: =K15*L15 -> 178350 | N15: 001-Ingresos corrientes
B16: Arquitectura | C16: 789-00 | D16: 20101 | E16: 010 | F16: 003220 | G16: 15121510 | H16: 90031942 | I16: LUBRICANTE PARA CABLEADO EN 946,25ml Marca 3M Modelo WL-QT | J16: Unidad | K16: 100 | L16: 6940 | M16: 694000 | N16: 001-Ingresos corrientes
B17: Arquitectura | C17: 789-00 | D17: 20104 | E17: 900 | F17: 005800 | G17: 24101611 | H17: 92155324 | I17: ESLINGA CON RACHET DE HIERRO TIPO CUELLO DE GANSO, MATERIAL 100% POLIESTER, ANCHO 2,5 cm, LARGO 5 m, CAPACIDAD 230 kg | J17: Unidad | K17: 8 | L17: 7000 | M17: 56000 | N17: 001-Ingresos corrientes
B18: Arquitectura | C18: 789-00 | D18: 20104 | E18: 900 | F18: 005800 | G18: 24101611 | H18: 92222384 | I18: ESLINGA DE AMARRE DE NAILON CON TENSOR TIPO TRINQUETE (RACHET) DE 50,8 mm (2 Pulg) DE ANCHO X 8 m DE LARGO CAPACIDAD DE CARGA VERTICAL DE 5000 kg | J18: Unidad | K18: 8 | L18: 10000 | M18: 80000 | N18: 001-Ingresos corrientes
B19: Arquitectura | C19: 789-00 | D19: 20104 | E19: 220 | F19: 000069 | G19: 31211502 | H19: 92065235 | I19: PINTURA ANTICORROSIVA (CORROSTYL) A BASE DE AGUA, COLOR BLANCO MATE, DE ALTA ADHERENCIA, EN PRESENTACIÓN DE 3,785 L, PARA EXTERIORES E INTERIORES Marca HONGOTEK Modelo HT533LS | J19: unidad | K19: 200 | L19: 6961 | M19: 1392200 | N19: 001-Ingresos corrientes
B20: Arquitectura | C20: 789-00 | D20: 20104 | E20: 220 | F20: 000069 | G20: 31211502 | H20: 92006289 | I20: PINTURA EN AGUA ANTICORROSIVA (FERROSTYL) ENV 18,93 L Marca HONGOTEK Modelo HT533LS | J20: unidad | K20: 200 | L20: 30165 | M20: 6033000 | N20: 001-Ingresos corrientes
B21: Arquitectura | C21: 789-00 | D21: 20104 | E21: 220 | F21: 000420 | G21: 31211502 | H21: 92044210 | I21: PINTURA EN AGUA ANTICORROSIVA, ENVASE 3,785 L, TIPO MINIO ROJO Marca HONGOTEK Modelo HT723LM | J21: unidad | K21: 200 | L21: 7975 | M21: 1595000 | N21: 001-Ingresos corrientes
B22: Arquitectura | C22: 789-00 | D22: 20104 | E22: 220 | F22: 000420 | G22: 31211502 | H22: 92066700 | I22: PINTURA ANTICORROSIVA EN AGUA, TIPO MINIO ROJO, CUBETA 18,925 L Marca HONGOTEK Modelo HT723LM | J22: unidad | K22: 200 | L22: 3945 | M22: 789000 | N22: 001-Ingresos corrientes
B23: Arquitectura | C23: 789-00 | D23: 20104 | E23: 220 | F23: 000900 | G23: 31211502 | H23: 92148214 | I23: PINTURA EN AGUA, ACRILICA, SATINADA, PARA EXTERIORES/INTERIORES, TIPO ANTIHONGOS, SECADO A 25°C, ENVASE 3,785 L Marca SUPERJOKER Modelo SJ330-LS ( Color a escoger por el administrador del contrato o persona desginada en su lugar) | J23: unidad | K23: 300 | L23: 6960 | M23: 2088000 | N23: 001-Ingresos corrientes
B24: Arquitectura | C24: 789-00 | D24: 20104 | E24: 220 | F24: 000900 | G24: 31211502 | H24: 92004786 | I24: PINTURA EN AGUA ACRILICA SATINADA PARA EXT-INT TIPO ANTIHONGOS ENV 18,93 L SECADO A 25°C Marca SUPERJOKER Modelo SJ330-LS ( Color a escoger por el administrador del contrato o persona desginada en su lugar) | J24: unidad | K24: 200 | L24: 31905 | M24: 6381000 | N24: 001-Ingresos corrientes
B25: Arquitectura | C25: 789-00 | D25: 20104 | E25: 220 | F25: 001300 | G25: 31211508 | H25: 92078639 | I25: PINTURA IMPERMEABILIZANTE, TIPO RESINA ACRILICA ELASTOMERICA, ACABADO SATINADO, ENVASE 3,785 L Marca HONGOTEK Modelo 133 (HT133-LS) ( Color a escoger por el administrador del contrato o persona desginada en su lugar) | J25: unidad | K25: 300 | L25: 6960 | M25: 2088000 | N25: 001-Ingresos corrientes
B26: Arquitectura | C26: 789-00 | D26: 20104 | E26: 220 | F26: 001300 | G26: 31211508 | H26: 92079006 | I26: PINTURA IMPERMEABILIZANTE, TIPO RESINA ACRILICA ELASTOMÉRICA, ACABADO SATINADO, ENVASE 18,93 L Marca HONGOTEK Modelo HT133LS ( Color a escoger por el administrador del contrato o persona desginada en su lugar) | J26: unidad | K26: 100 | L26: 30165 | M26: 3016500 | N26: 001-Ingresos corrientes
B27: Arquitectura | C27: 789-00 | D27: 20104 | E27: 220 | F27: 000003 | G27: 31211508 | H27: 92148964 | I27: PINTURA ACRÍLICA A BASE DE RESINAS ACRÍLICAS Y PIGMENTOS DE ALTA CALIDAD, RESISTENTE AL LAVADO OCASIONAL RESISTENTE AL CALOR, ANTI HONGOS, APLICABLE SOBRE CUALQUIER SUPERFICIE,VISCOSIDAD 97%, RENDIMIENTO 40 m2,SOLIDO POR PESO 54-56%, PRESENTACIÓN DE CUBETAS DE 3,785 L Marca SUPERJOKER Modelo SJ330LM ( Color a escoger por el administrador del contrato o persona desginada en su lugar) | J27: unidad | K27: 200 | L27: 5800 | M27: 1160000 | N27: 001-Ingresos corrientes
B28: Arquitectura | C28: 789-00 | D28: 20104 | E28: 220 | F28: 000003 | G28: 31211508 | H28: 92148971 | I28: PINTURA ACRÍLICA A BASE DE RESINAS ACRÍLICAS Y PIGMENTOS DE ALTA CALIDAD, RESISTENTE AL LAVADO OCASIONAL RESISTENTE AL CALOR, ANTI HONGOS, APLICABLE SOBRE CUALQUIER SUPERFICIE,VISCOSIDAD 97%, RENDIMIENTO 40 m2,SOLIDO POR PESO 54-56%, PRESENTACIÓN DE CUBETAS DE 18,927 L Marca SUPERJOKER Modelo SJ330LM ( Color a escoger por el administrador del contrato o persona desginada en su lugar) | J28: unidad | K28: 200 | L28: 24365 | M28: 4873000 | N28: 001-Ingresos corrientes
B29: Arquitectura | C29: 789-00 | D29: 20104 | E29: 220 | F29: 000069 | G29: 31211502 | H29: 92131327 | I29: PINTURA PRIMARIO ACABADO ANTICORROSIVO, BASE AGUA, ACABADO MATE, SOLIDOS POR VOLUMEN 43%-47%, COLOR AZUL, TIEMPO SECADO AL TACTO 30 min, PRESENTACION ENVASE DE 0,94 L (1/4 Gal) Marca HONGOTEK Modelo HT723LM | J29: unidad | K29: 150 | L29: 5510 | M29: 826500 | N29: 001-Ingresos corrientes
B30: Arquitectura | C30: 789-00 | D30: 20104 | E30: 220 | F30: 001600 | G30: 31211502 | H30: 92044437 | I30: PINTURA BASE AGUA ACABADO, ANTICORROSIVO, PIGMENTOS INHIBIDORES CORROSION, RESISTENCIA RAYOS UV, SOLIDOS POR VOLUMEN MENOS 40%, SOLIDOS PESO MENOR 55%, TIEMPRO SECADO MAXIMO 0,5 h, COLOR RAL 6005 , PRESENTACION ENVASE 3,785 L, PARA TECHO SOBRE LAMINAS ESMALTADAS Marca CELCOLOR Modelo CELCO ( Color a escoger por el administrador del contrato o persona desginada en su lugar) | J30: unidad | K30: 150 | L30: 10418 | M30: =K30*L30 -> 1562700 | N30: 001-Ingresos corrientes
B31: Arquitectura | C31: 789-00 | D31: 20104 | E31: 220 | F31: 000440 | G31: 31211505 | H31: 92006749 | I31: PINTURA ANTICORROSIVA DE ALUMINIO EN ACEITE, ENVASE DE 3.785 L Marca CELCOLOR Modelo CELCO | J31: unidad | K31: 40 | L31: 11143 | M31: =K31*L31 -> 445720 | N31: 001-Ingresos corrientes
B32: Arquitectura | C32: 789-00 | D32: 20104 | E32: 220 | F32: 000300 | G32: 31211513 | H32: 92033476 | I32: PINTURA DE TRANSITO, BASE DE AGUA 100 % ACRILICA, CUBETA 18,93 L, PARA DEMARCACION EN PARQUEOS Y CALLES Marca CELCOLOR Modelo CELCO ( Color a escoger por el administrador del contrato o persona desginada en su lugar) | J32: unidad | K32: 100 | L32: 49000 | M32: 4900000 | N32: 001-Ingresos corrientes
B33: Arquitectura | C33: 789-00 | D33: 20104 | E33: 005 | F33: 000001 | G33: 31211803 | H33: 92002505 | I33: Aguarrás (esencia de trementina) Marca CELCO Modelo CELCO | J33: unidad | K33: 1980 | L33: 3900 | M33: 7722000 | N33: 001-Ingresos corrientes
B34: Arquitectura | C34: 789-00 | D34: 20199 | E34: 900 | F34: 090701 | G34: 31201607 | H34: 92008314 | I34: PEGAMENTO PARA UNIR DE FORMA FIRME Y SEGURA TUBERIAS Y ACCESORIOS DE PLASTICO PVC PRESENTACION ENVASE DE 0,95 L PARA USAR CON BROCHIN | J34: unidad | K34: 400 | L34: 10000 | M34: =K34*L34 -> 4000000 | N34: 001-Ingresos corrientes
B35: Arquitectura | C35: 789-00 | D35: 20301 | E35: 145 | F35: 000200 | G35: 31162906 | H35: 92015613 | I35: GAZA DE ACERO GALVANIZADO 1 HUECO PARA TUBO CONDUIT 12.7 mm DE DIAMETRO TIPO AMERICANO | J35: unidad | K35: 1000 | L35: 22 | M35: =K35*L35 -> 22000 | N35: 001-Ingresos corrientes
B36: Arquitectura | C36: 789-00 | D36: 20301 | E36: 145 | F36: 000060 | G36: 31162906 | H36: 92007461 | I36: GAZA DE ACERO EMT, 1 OREJA LIVIANA DE 19,05 mm | J36: unidad | K36: 600 | L36: 35 | M36: =K36*L36 -> 21000 | N36: 001-Ingresos corrientes
B37: Arquitectura | C37: 789-00 | D37: 20301 | E37: 145 | F37: 000200 | G37: 31162906 | H37: 92009498 | I37: GAZADEACEROEMT,1OREJADIAMETRODE32mm(11/4PULGADA)UTILIZADAPARAFIJACIONDE TUBERIAS ( UL) | J37: unidad | K37: 600 | L37: 80 | M37: 48000 | N37: 001-Ingresos corrientes
B38: Arquitectura | C38: 789-00 | D38: 20301 | E38: 145 | F38: 000120 | G38: 31162906 | H38: 92117955 | I38: ABRAZADERA APRIETE (GAZA SIN FIN) ACERO INOXIDABLE, DIAMETRO 31,75 mm (1 1/4 Pulg) A 50,80 mm (2 Pulg), PARA CONEXION DE TUBOS O MANGUERAS | J38: unidad | K38: 600 | L38: 180 | M38: 108000 | N38: 001-Ingresos corrientes
B39: Arquitectura | C39: 789-00 | D39: 20301 | E39: 145 | F39: 000130 | G39: 31162906 | H39: 92022299 | I39: ABRAZADERA DE (GAZA SIN FIN) ACERO INOXIDABLE TAMAÑO 101,6 mm PARA CONEXION DE MANGUERA | J39: unidad | K39: 600 | L39: 300 | M39: 180000 | N39: 001-Ingresos corrientes
B40: Arquitectura | C40: 789-00 | D40: 20301 | E40: 110 | F40: 000305 | G40: 30103201 | H40: 92043669 | I40: MALLA CICLON DE ACERO GALVANIZADO DE 3,15 mm DE GROSOR X 50,80 mm DE ANCHO DEL ROMBO X 50,80 mm DE LARGO DEL ROMBOS X 3 m DE ALTURA. Debe entregarse en presentación en rollos de 25 a 30 metros lineales. Rango de tolerancia en medidas aceptable: Grosor +-10 mm Ancho del rombo +- 5 mm Largo del rombo +- 5 mm | J40: metro | K40: 100 | L40: 9000 | M40: 900000 | N40: 001-Ingresos corrientes
B41: Arquitectura | C41: 789-00 | D41: 20301 | E41: 180 | F41: 000920 | G41: 23271810 | H41: 92154871 | I41: ELECTRODO DE SOLDADURA 6013 EN 2,5mm (3/32 PULG) DE DIAMETRO X 350mm DE LARGO | J41: Kilogramo | K41: 200 | L41: 4500 | M41: 900000 | N41: 001-Ingresos corrientes
B42: Arquitectura | C42: 789-00 | D42: 20301 | E42: 180 | F42: 000920 | G42: 23271810 | H42: 92154872 | I42: ELECTRODO DE SOLDADURA 6013 EN 3,2mm (1/8 PULG) DE DIAMETRO X 350mm DE LARGO | J42: Kilogramo | K42: 200 | L42: 4800 | M42: 960000 | N42: 001-Ingresos corrientes
B43: Arquitectura | C43: 789-00 | D43: 20301 | E43: 010 | F43: 000045 | G43: 46171503 | H43: 92069357 | I43: CERRADURA (LLAVIN) DOBLE PASO DERECHO, CILINDRO DE LATÓN MACIZO Y SEIS PINES. | J43: unidad | K43: 25 | L43: 15456 | M43: 386400 | N43: 001-Ingresos corrientes
B44: Arquitectura | C44: 789-00 | D44: 20301 | E44: 040 | F44: 000450 | G44: 30102004 | H44: 92036888 | I44: LAMINA DE ACERO NEGRO ANTIDESLIZANTE DE 4,76 mm GROSOR X 1,22 m ANCHO X 2,44 m LARGO | J44: unidad | K44: 25 | L44: 105000 | M44: 2625000 | N44: 001-Ingresos corrientes
B45: Arquitectura | C45: 789-00 | D45: 20301 | E45: 135 | F45: 001706 | G45: 30102303 | H45: 92043694 | I45: TUBO RECTANGULAR INDUSTRIAL DE HIERRO NEGRO DE 25,40 mm (1 Pulg) ALTO X 38,10 mm (1 1/2 Pulg) ANCHO X 1,50 mm (1/16 Pulg) ESPESOR X 6,10 m LARGO | J45: unidad | K45: 100 | L45: 7000 | M45: 700000 | N45: 001-Ingresos corrientes
B46: Arquitectura | C46: 789-00 | D46: 20301 | E46: 135 | F46: 000005 | G46: 40171501 | H46: 92058200 | I46: TUBO DE HIERRO NEGRO, TIPO ESTRUCTURAL DE 4,75 mm DE GROSOR X 100 mm X 100 mm X 6 m DE LARGO | J46: unidad | K46: 25 | L46: 70600 | M46: 1765000 | N46: 001-Ingresos corrientes
B47: Arquitectura | C47: 789-00 | D47: 20301 | E47: 120 | F47: 000787 | G47: 30102204 | H47: 92007708 | I47: PLATINA (PLETINA) DE ACERO, 6,35 mm ESPESOR X 76,20 mm ANCHO X 6 m LARGO Marca AAA Modelo 2007009 | J47: unidad | K47: 50 | L47: 13000 | M47: 650000 | N47: 001-Ingresos corrientes
B48: Arquitectura | C48: 789-00 | D48: 20301 | E48: 135 | F48: 00005 | G48: 30102303 | H48: 92043917 | I48: TUBO CUADRADO INDUSTRIAL DE ACERO GALVANIZADO DE 76,2 mm (3 Pulg) ALTO x 76,2 mm (3 Pulg) ANCHO X 3,17 mm (1/8 Pulg) ESPESOR X 6,10 m LARGO | J48: unidad | K48: 25 | L48: 34200 | M48: 855000 | N48: 001-Ingresos corrientes
B49: Arquitectura | C49: 789-00 | D49: 20301 | E49: 010 | F49: 000080 | G49: 3162801 | H49: 92032503 | I49: LLAVIN DE BOLA CON LLAVE, COLOR DORADO.Unidad de empaque UNIDADMATERIAL METALICOTIPO BOLACOLOR DORADOPRODUCTO LLAVÍNFORMA BOLA Para instalacion en puertas ( metalicas o de madera, interior o exterior) | J49: unidad | K49: 10 | L49: 70000 | M49: 700000 | N49: 001-Ingresos corrientes
B50: Arquitectura | C50: 789-00 | D50: 20301 | E50: 175 | F50: 000004 | G50: 31161507 | H50: 92136233 | I50: TORNILLO PARA GYPSUM PUNTA CORRIENTE, #8 DE 31,75 mm DE LARGO, COLOR NEGRO | J50: unidad | K50: 20000 | L50: 3.5 | M50: 70000 | N50: 001-Ingresos corrientes
B51: Arquitectura | C51: 789-00 | D51: 20301 | E51: 175 | F51: 000004 | G51: 31161507 | H51: 90032533 | I51: TORNILLOTIPOGYPSUMDE2.54cm,NEGRO,CON PUNTA DE BROCAUnidad de empaque UNIDADFORMA CON PUNTA TIPO BROCALARGO 2.54 cmTIPO GYPSUM | J51: unidad | K51: 20000 | L51: 8 | M51: 160000 | N51: 001-Ingresos corrientes
B52: Arquitectura | C52: 789-00 | D52: 20301 | E52: 175 | F52: 000004 | G52: 31161505 | H52: 92041709 | I52: TORNILLO PARA GYPSUM TIPO TEK DE 6mm DE GROSOR POR 25,40 mm DE LARGO (6X1) | J52: unidad | K52: 20000 | L52: 4 | M52: 80000 | N52: 001-Ingresos corrientes
B53: Arquitectura | C53: 789-00 | D53: 20301 | E53: 175 | F53: 000004 | G53: 31161505 | H53: 92041710 | I53: TORNILLO PARA GYPSUM TIPO TEK DE 6mm DE GROSOR POR 50,80 mm DE LARGO (6X2) | J53: unidad | K53: 20000 | L53: 7 | M53: 140000 | N53: 001-Ingresos corrientes
B54: Arquitectura | C54: 789-00 | D54: 20301 | E54: 140 | F54: 000140 | G54: 30102404 | H54: 90003459 | I54: VARILLA #4 DE ACERO DEFORMADO DE 12.70 MM ( 1/2" ) X 6 MTS | J54: unidad | K54: 500 | L54: 3060 | M54: 1530000 | N54: 001-Ingresos corrientes
B55: Arquitectura | C55: 789-00 | D55: 20301 | E55: 140 | F55: 002100 | G55: 30102404 | H55: 90003447 | I55: VARILLAACEROLISA#8DE25,4mmDEDIAMETRO X 6 m DE LARGO, GRADO 60Unidad de empaque UNIDADDIAMETRO 25,40 mm LARGO 6 m PRODUCTO VARILLA GRADO 60 MATERIAL ACERO NUMERO 8 | J55: unidad | K55: 50 | L55: 14000 | M55: 700000 | N55: 001-Ingresos corrientes
B56: Arquitectura | C56: 789-00 | D56: 20301 | E56: 900 | F56: 003820 | G56: 39121303 | H56: 92061652 | I56: CAJA OCTOGONAL DE ACERO GALVANIZADO (EMT), PREVISTAS DE 12,70 mm (½ Pulg), DIÁMETRO 101,60 mm, FONDO 38 mm, ESPESOR 1,2 mm O SUPERIOR, PARA INSTALACIONES ELECTRICAS | J56: unidad | K56: 300 | L56: 420 | M56: 126000 | N56: 001-Ingresos corrientes
B57: Arquitectura | C57: 789-00 | D57: 20301 | E57: 140 | F57: 000001 | G57: 30101604 | H57: 92021066 | I57: BARRA DE ACERO (VARILLA LISA) # 2 DE 6,35 mm X 6 m GRADO 40 | J57: unidad | K57: 1000 | L57: 700 | M57: 700000 | N57: 001-Ingresos corrientes
B58: Arquitectura | C58: 789-00 | D58: 20301 | E58: 001 | F58: 000001 | G58: 31162407 | H58: 92099971 | I58: ALDABA METALICA DORADA DE 2,38 mm (3/32 Pulg) X 101,60 mm X (4 Pulg) | J58: unidad | K58: 100 | L58: 800 | M58: 80000 | N58: 001-Ingresos corrientes
B59: Arquitectura | C59: 789-00 | D59: 20301 | E59: 005 | F59: 000001 | G59: 31162403 | H59: 90010059 | I59: BISAGRA DE ACERO, DE 76,20 mm X 76,20 mm | J59: UNIDAD | K59: 150 | L59: 1400 | M59: 210000 | N59: 001-Ingresos corrientes
B60: Arquitectura | C60: 789-00 | D60: 20301 | E60: 010 | F60: 000080 | G60: 31161606 | H60: 92009973 | I60: LLAVIN DE ACERO DE PERILLA DE BOLA DE 51 mm CON LLAVE CON DOS LLAVES Para instalacion en puertas ( metalicas o de madera, interior o exterior) | J60: unidad | K60: 100 | L60: 8000 | M60: 800000 | N60: 001-Ingresos corrientes
B61: Arquitectura | C61: 789-00 | D61: 20301 | E61: 900 | F61: 000010 | G61: 31162702 | H61: 92088332 | I61: RODIN CON UN DIAMETRO DE 8 cm (+/- 1 cm) FABRICADO EN POLIURETANO, CON CAPACIDAD NO MENOR A 55 kg. | J61: Unidad | K61: 150 | L61: 6200 | M61: 930000 | N61: 001-Ingresos corrientes
B62: Arquitectura | C62: 789-00 | D62: 20301 | E62: 001 | F62: 000001 | G62: 46171511 | H62: 92070989 | I62: ALDABADEACEROFIJA,MEDIDAS25,4mmDEANCHO X 50,8 mm DE LARGOUnidad de empaque UNIDADESTILO FIJALARGO 50,8 mm PRODUCTO ALDABA | J62: Unidad | K62: 100 | L62: 1360 | M62: 136000 | N62: 001-Ingresos corrientes
B63: Arquitectura | C63: 789-00 | D63: 20301 | E63: 135 | F63: 001700 | G63: 40171601 | H63: 92079778 | I63: TUBOINDUSTRIALRECTANGULARDE25mmX50mmX1.50mmX6m,PULIDO,ENROLADOENFRÌO,CONUNAPEQUEÑAPELÍCULADEACEITE,GRADO DEL ACERO NO MENOR A DC01-ST12Unidad de empaque UNIDADNORMADEFABRICACIONAISI/SAE1008OJISG3141, NTC 1986MATERIAL TUBO INDUSTRIAL RECTANGULAR LARGO 6 mCEDULAGRADODELACERONOMENORADC01-ST12TIPODETUBERIACOMPOSICIONQUIMICADELACERO S235JRH | J63: Unidad | K63: 200 | L63: 7000 | M63: 1400000 | N63: 001-Ingresos corrientes
B64: Arquitectura | C64: 789-00 | D64: 20301 | E64: 175 | F64: 000010 | G64: 31161509 | H64: 92068257 | I64: TORNILLODEACEROPUNTACORRIENTEDE6,35mmDEDIAMETROX63,5mm(21/2Pulg)DELARGO PARA GYPSUMUnidad de empaque UNIDADMATERIAL ACEROTIPO PUNTA CORRIENTE LARGO 63,5 mm DIMENSIONES DIAMETRO 6,35 mm | J64: Unidad | K64: 1000 | L64: 20 | M64: 20000 | N64: 001-Ingresos corrientes
B65: Arquitectura | C65: 789-00 | D65: 20301 | E65: 135 | F65: 000005 | G65: 40171601 | H65: 92079725 | I65: TUBOCUADRADOINDUSTRIALDE2,22cmx1,50mmX6m,PULIDOENROLLADOENFRIO,CONUNAPEQUEÑAPELICULADEACEITE,COMPOSICION QUIMICA DEL ACERO S235 JRHUnidad de empaque UNIDADNORMA AISI/SAE 1008 o JIS G 3141, NTC 1986MATERIALCOMPOSICIONQUIMICADELACEROS235 JRH LARGO 6 m DIAMETRO 2,22 cm X 1,50 mm cm/mm CEDULAGRADODELACERONOMENORADC01-ST12 | J65: Unidad | K65: 50 | L65: 5000 | M65: 250000 | N65: 001-Ingresos corrientes
B66: Arquitectura | C66: 789-00 | D66: 20301 | E66: 900 | F66: 000085 | G66: 31162801 | H66: 92090857 | I66: AGARRADERA(MANILLA)METALICA,LARGO125mm, PARA PUERTAUnidad de empaque UNIDADMATERIAL METALUTILIDAD PARA PUERTAPRODUCTO AGARRADERA LARGO 125 mm | J66: Unidad | K66: 200 | L66: 1000 | M66: 200000 | N66: 001-Ingresos corrientes
B67: Arquitectura | C67: 789-00 | D67: 20301 | E67: 175 | F67: 001100 | G67: 31161509 | H67: 92056313 | I67: TORNILLODEACEROAUTORROSCANTEDE50,8mm (2 Pulg) PUNTA FINA PARA GYPSUNUnidad de empaque UNIDADMATERIAL ACERO TIPO PUNTA FINA LARGO 50,8 (2) mm (Pulg) | J67: Unidad | K67: 1000 | L67: 18 | M67: 18000 | N67: 001-Ingresos corrientes
B68: Arquitectura | C68: 789-00 | D68: 20301 | E68: 010 | F68: 000440 | G68: 31162407 | H68: 92037893 | I68: LLAVINMETALICOCONCILINDROEXCENTRIODE19,05MMPARATRESGAVETASMUEBLETIPOARTURITO.Unidad de empaque UNIDADPRODUCTOLLAVINMETALICOCONCILINDROEXCENTRIO MATERIAL METALICO LARGO 19,05 mm | J68: Unidad | K68: 30 | L68: 2000 | M68: 60000 | N68: 001-Ingresos corrientes
B69: Arquitectura | C69: 789-00 | D69: 20301 | E69: 005 | F69: 000001 | G69: 31162403 | H69: 92008455 | I69: BISAGRADEACEROGALVANIZADOA-36,MEDIDAS76,20mmANCHOX76,20mmLARGO,PARA USO INDUSTRIALUnidad de empaque UNIDADMATERIAL ACERO GALVANIZADOLARGO 76,20 mmUTILIDAD INDUSTRIALANCHO 76,20 mmPRESENTACION EN PARES | J69: Unidad | K69: 500 | L69: 1325 | M69: 662500 | N69: 001-Ingresos corrientes
B70: Arquitectura | C70: 789-00 | D70: 20301 | E70: 005 | F70: 000001 | G70: 31162403 | H70: 92006044 | I70: BISAGRADEACEROOCULTAPARAMUEBLEDE26mm RECTAUnidad de empaque UNIDADMATERIAL ACEROLARGO 26 mmUTILIDAD MUEBLE TAMAÑO RECTOTIPO OCULTAPRODUCTO BISAGRA | J70: Unidad | K70: 500 | L70: 800 | M70: 400000 | N70: 001-Ingresos corrientes
B71: Arquitectura | C71: 789-00 | D71: 20301 | E71: 005 | F71: 000001 | G71: 31161606 | H71: 92207615 | I71: LLAVIN PARA GAVETA, CON P ESTILLO VERTICAL, LONGITUD DE CILINDRO DE 22 mm, CON BACKSET DE 20 mm, DIMENSIONES 47,6 mm DE ANCHO X 37,6 mm DE ALTO X 27,7 mm DE PROFUNDIDAD | J71: unidad | K71: 50 | L71: 885 | M71: 44250 | N71: 001-Ingresos corrientes
B72: Arquitectura | C72: 789-00 | D72: 20301 | E72: 005 | F72: 000001 | G72: 31162403 | H72: 92009256 | I72: BISAGRA DE HIERRO DE 50.8 X 50.8 mm | J72: unidad | K72: 600 | L72: 1100 | M72: 660000 | N72: 001-Ingresos corrientes
B73: Arquitectura | C73: 789-00 | D73: 20301 | E73: 001 | F73: 000220 | G73: 30102004 | H73: 90017647 | I73: LAMINA DE ACERO GALVANIZADA (ONDULADA) # 26 1,07 X 2,44 m | J73: unidad | K73: 100 | L73: 8900 | M73: 890000 | N73: 001-Ingresos corrientes
B74: Arquitectura | C74: 789-00 | D74: 20301 | E74: 135 | F74: 000005 | G74: 40171503 | H74: 92044250 | I74: TUBO CUADRADO DE HIERRO, GROSOR DE 3,2 mm X ANCHO DE 101,6 mm X ALTO DE 101,6 mm (4 Pulg X 4 Pulg), PARA TUBERIA | J74: unidad | K74: 200 | L74: 47400 | M74: 9480000 | N74: 001-Ingresos corrientes
B75: Arquitectura | C75: 789-00 | D75: 20301 | E75: 115 | F75: 000001 | G75: 30102304 | H75: 90018354 | I75: PERFIL DE ACERO RT-3 DE 2,38 MM X 150 MM X 50 MM X 6 M | J75: unidad | K75: 25 | L75: 20600 | M75: 515000 | N75: 001-Ingresos corrientes
B76: Arquitectura | C76: 789-00 | D76: 20301 | E76: 060 | F76: 000500 | G76: 30101503 | H76: 92026936 | I76: ANGULAR DE HIERRO NEGRO, MEDIDAS 6.35 X 50.80 mm (1/4 X 2 Pulg) X 6 m | J76: unidad | K76: 50 | L76: 16100 | M76: 805000 | N76: 001-Ingresos corrientes
B77: Arquitectura | C77: 789-00 | D77: 20301 | E77: 100 | F77: 000975 | G77: 30102003 | H77: 92063643 | I77: LÁMINA RECTANGULAR PARA TECHO, ESMALTADA BLANCA, CALIBRE # 26, DIMENSIONES 0,45 mm X 1607 mm X 3,66 m LARGO, RESISTENCIA 90 kg/m2, CLAVADORES CADA 1,20 m | J77: unidad | K77: 50 | L77: 19500 | M77: 975000 | N77: 001-Ingresos corrientes
B78: Arquitectura | C78: 789-00 | D78: 20301 | E78: 100 | F78: 000975 | G78: 30102004 | H78: 92047031 | I78: LAMINA DE ACERO ESMALTADA RECTANGULAR # 26 DE 1,07 m DE ANCHO X 2.4 m DE LARGO PARA TECHO | J78: unidad | K78: 10 | L78: 8000 | M78: 80000 | N78: 001-Ingresos corrientes
B79: Arquitectura | C79: 789-00 | D79: 20301 | E79: 900 | F79: 008500 | G79: 30151502 | H79: 90037321 | I79: LIMAHOYA DE ACERO GALVANIZADO # 26 DE 0,45m X 1,83m | J79: unidad | K79: 50 | L79: 3000 | M79: 150000 | N79: 001-Ingresos corrientes
B80: Arquitectura | C80: 789-00 | D80: 20301 | E80: 120 | F80: 000787 | G80: 30102203 | H80: 92022429 | I80: PLATINA DE HIERRO NEGRO, MEDIDAS 6.35 mm X 50.80 mm X 6 m (1/4 Pulg X 2 Pulg X 6 m) | J80: unidad | K80: 50 | L80: 7000 | M80: 350000 | N80: 001-Ingresos corrientes
B81: Arquitectura | C81: 789-00 | D81: 20301 | E81: 135 | F81: 001325 | G81: 39131719 | H81: 92039294 | I81: TUBO METALICO GALVANIZADO EMT DE 12,70 mm (1/2 pulg) X 3 m, EN ROLLOS CON 25 UNIDADES CADA UNO | J81: unidad | K81: 50 | L81: 1170 | M81: 58500 | N81: 001-Ingresos corrientes
B82: Arquitectura | C82: 789-00 | D82: 20301 | E82: 135 | F82: 001401 | G82: 39131719 | H82: 92033889 | I82: TUBO DE ACERO GALVANIZADO CONDUIT EMT DE 38,1 mm (1 1/2 Pulg) X 3,05 m | J82: unidad | K82: 50 | L82: 6350 | M82: 317500 | N82: 001-Ingresos corrientes
B83: Arquitectura | C83: 789-00 | D83: 20301 | E83: 135 | F83: 001360 | G83: 39131719 | H83: 92023393 | I83: TUBO DE ACERO GALVANIZADO, CONDUIT EMT, DE 25,4 mm (1 Pulg) DE DIÁMETRO X 3 m DE LARGO, PARA LA CONDUCCIÓN DE CABLES ELÉCTRICOS, CON UN ACABADO GALVANIZADO EN SU EXTERIOR PARA ALTA RESISTENCIA A LA CORROSIÓN. | J83: unidad | K83: 50 | L83: 3450 | M83: 172500 | N83: 001-Ingresos corrientes
B84: Arquitectura | C84: 789-00 | D84: 20301 | E84: 135 | F84: 001340 | G84: 39131719 | H84: 92072622 | I84: TUBO EMT UL de 18 mm (0,70 Pulg) AMERICANO, LARGO 3 m | J84: unidad | K84: 50 | L84: 2035 | M84: 101750 | N84: 001-Ingresos corrientes
B85: Arquitectura | C85: 789-00 | D85: 20301 | E85: 135 | F85: 001380 | G85: 39131719 | H85: 92041939 | I85: TUBO EMT DE 3,18 ( 1 1/4 Pulg) | J85: unidad | K85: 50 | L85: 5215 | M85: 260750 | N85: 001-Ingresos corrientes
B86: Arquitectura | C86: 789-00 | D86: 20301 | E86: 001 | F86: 000001 | G86: 31162407 | H86: 92008304 | I86: ALDABADEACEROGALVANIZADODE3,17mm(grosor)X30mm(ancho)X127mm(largo)PARASERVICIO PESADOUnidad de empaque UNIDADUTILIDAD SERVICIO PESADO MATERIAL ACERO GALVANIZADO LARGO 127 mm ANCHO 30 mm GROSOR 3,17 mm | J86: Unidad | K86: 200 | L86: 1535 | M86: 307000 | N86: 001-Ingresos corrientes
B87: Arquitectura | C87: 789-00 | D87: 20301 | E87: 005 | F87: 000001 | G87: 31162403 | H87: 92008477 | I87: BISAGRA DE ACERO, SOLDABLE, MEDIDAS 101,6 mm (4") ANCHO X 101,6 mm (4") LARGO PARA USO RESIDENCIAL, DE GRAN MOVILIDAD PARA FACILITAR ABRIR Y CERRAR CON FACILIDAD | J87: Unidad | K87: 100 | L87: 1255 | M87: 125500 | N87: 001-Ingresos corrientes
B88: Arquitectura | C88: 789-00 | D88: 20301 | E88: 900 | F88: 000900 | G88: 30171906 | H88: 92134817 | I88: MARCODEALUMINIOPARAVENTANADE25,40mmDEGROSORX50,80mmDEANCHOX6,10mDE LARGOUnidad de empaque UNIDADPRODUCTO MARCOUTILIDAD PARA VENTANAMATERIAL ALUMINIOANCHO 50,80 mm mm LARGO 6,10 m m ESPESOR 25,40 mm | J88: Unidad | K88: 15 | L88: 20970 | M88: 314550 | N88: 001-Ingresos corrientes
B89: Arquitectura | C89: 789-00 | D89: 20301 | E89: 005 | F89: 000001 | G89: 31162403 | H89: 92055906 | I89: BISAGRA DE ACERO, MEDIDAS 50,80 mm ANCHO X 50,80 mm LARGO | J89: Unidad | K89: 500 | L89: 275 | M89: 137500 | N89: 001-Ingresos corrientes
B90: Arquitectura | C90: 789-00 | D90: 20301 | E90: 900 | F90: 013940 | G90: 30181701 | H90: 92121419 | I90: LLAVEDECHORRO,1,27cm,CONROSCAEXTERNA, COLOR BRONCE, ANGULARDISEÑO ANGULAR ESTILO ESTANDARMATERIAL BRONCEPRODUCTO LLAVE DE CHORRO TAMAÑO 1,27 cm TIPO ESTANDARTIPO DE CABEZA PALOMILLA TIPO DE MATERIAL BRONCETIPO DE ROSCA ORDINARIA | J90: Unidad | K90: 50 | L90: 8195 | M90: 409750 | N90: 001-Ingresos corrientes
B91: Arquitectura | C91: 789-00 | D91: 20301 | E91: 155 | F91: 000079 | G91: 40173309 | H91: 92046966 | I91: NIPLEDEHIERROGALVANIZADO,12,70mmDEDIAMETROX76,20mmDELONGITUD,CONROSCA NPTUnidad de empaque UNIDADDIAMETRO 12,70 mm LONGITUD 76,20 mm MATERIAL HIERRO GALVANIZADOPRODUCTO NIPLE TIPO DE ROSCA CON ROSCA NPT | J91: Unidad | K91: 500 | L91: 200 | M91: 100000 | N91: 001-Ingresos corrientes
B92: Arquitectura | C92: 789-00 | D92: 20301 | E92: 155 | F92: 000079 | G92: 40173309 | H92: 92046974 | I92: NIPLEDEHIERROGALVANIZADO,DIAMETRODE12,7 mm X 203,2 mm DE LONGITUDUnidad de empaque UNIDADDIAMETRO 12,7 mm LONGITUD 203,2 mm MATERIAL HIERRO GALVANIZADO,PRODUCTO NIPLE | J92: Unidad | K92: 500 | L92: 445 | M92: 222500 | N92: 001-Ingresos corrientes
B93: Arquitectura | C93: 789-00 | D93: 20301 | E93: 015 | F93: 000250 | G93: 30171905 | H93: 92110844 | I93: HERRAJE DE ALUMINIO, PARA CELOSIAS DE 10 cm DE ANCHO, LARGO APROXIMADO DEL HERRAJE 1 m | J93: Unidad | K93: 50 | L93: 6720 | M93: 336000 | N93: 001-Ingresos corrientes
B94: Arquitectura | C94: 789-00 | D94: 20301 | E94: 025 | F94: 000080 | G94: 31161606 | H94: 92050370 | I94: PICAPORTEDEMETAL,CONACABADODEBRONCE,DE76,2mm(3Pulg)DELARGO,BASERECTAUnidad de empaque UNIDADTIPO BASE RECTAMATERIAL METAL TAMAÑO 76,2 mm PRODUCTO PICAPORTEACABADO DE BRONCE | J94: Unidad | K94: 500 | L94: 300 | M94: 150000 | N94: 001-Ingresos corrientes
B95: Arquitectura | C95: 789-00 | D95: 20301 | E95: 025 | F95: 000001 | G95: 31161606 | H95: 90030421 | I95: PICAPORTE NIQUELADO DE 5,08 cm ( 2 Pulg )Unidad de empaque UNIDADMATERIAL HIERRO TAMAÑO 5.08 cmESTILO NIQUELADO | J95: Unidad | K95: 500 | L95: 1800 | M95: 900000 | N95: 001-Ingresos corrientes
B96: Arquitectura | C96: 789-00 | D96: 20301 | E96: 025 | F96: 000001 | G96: 31161606 | H96: 92112246 | I96: Picaporteplatina#5(4.5”),piezafuerteparausosemipesado y pesado.Constadedospiezas,elpicaporteyelrecibidor(fijación por tornillos o soldadura).Unidad de empaque UNIDADTAMAÑO 11,43 cm UTILIDAD uso semipesado y pesadoESTILO platinaNUMERO 5DISEÑO fijacion por tornillo o soldadura | J96: Unidad | K96: 300 | L96: 1945 | M96: =K96*L96 -> 583500 | N96: 001-Ingresos corrientes
B97: Arquitectura | C97: 789-00 | D97: 20301 | E97: 025 | F97: 000080 | G97: 31161606 | H97: 92056544 | I97: PICAPORTE DE METAL, CON ACABADO DE BRONCE, DE 101,6 mm (4 Pulg) DE LARGO, BASE RECTA | J97: Unidad | K97: 300 | L97: 1500 | M97: 450000 | N97: 001-Ingresos corrientes
B98: Arquitectura | C98: 789-00 | D98: 20301 | E98: 040 | F98: 000004 | G98: 30102003 | H98: 92110671 | I98: LAMINA DE HIERRO EXPANDIDO, TIPO PRISMA, NUMERO 13, MEDIDAS 1,22 m x 2,44 m, CALIBRE 4,76 mm | J98: Unidad | K98: 50 | L98: 47000 | M98: 2350000 | N98: 001-Ingresos corrientes
B99: Arquitectura | C99: 789-00 | D99: 20301 | E99: 040 | F99: 000450 | G99: 30102003 | H99: 92051519 | I99: LAMINAANTIDESLIZANTEDEHIERRONEGRO,ESPESOR3,17mmXANCHO1,22mXLARGO2,44 mUnidad de empaque UNIDADMATERIAL DE LAMINA HIERRO NEGRO ANCHO 1,22 mGROSOR 3,17 mmLARGO 2,44 mmPRODUCTO LAMINA DE HIERROESTILO ANTIDESLIZANTE | J99: Unidad | K99: 25 | L99: 45000 | M99: 1125000 | N99: 001-Ingresos corrientes
B100: Arquitectura | C100: 789-00 | D100: 20301 | E100: 045 | F100: 001060 | G100: 31152209 | H100: 92010832 | I100: ALAMBRE NEGRO, N° 16, DIAMETRO 1.68 mm | J100: Kilogramo | K100: 100 | L100: 740 | M100: 74000 | N100: 001-Ingresos corrientes
B101: Arquitectura | C101: 789-00 | D101: 20301 | E101: 045 | F101: 001750 | G101: 31152001 | H101: 92008346 | I101: ALAMBRENAVAJADEACEROINOXIDABLE,ENROLLO, LARGO 8,25 mUnidad de empaque UNIDADPRESENTACION ROLLO LARGO 8,25 m UTILIDAD SEGURIDADMATERIAL ACERO INOXIDABLE PRODUCTO ALAMBRE FORMA NAVAJA | J101: Unidad | K101: 50 | L101: 8500 | M101: 425000 | N101: 001-Ingresos corrientes
B102: Arquitectura | C102: 789-00 | D102: 20301 | E102: 045 | F102: 001800 | G102: 31152002 | H102: 90016257 | I102: ALAMBRE DE ACERO PUAS (P/CERCA) EN ROLLOUnidad de empaque UNIDADPRODUCTO ALAMBRE MATERIAL ACERO ESTILO PUAS UTILIDAD CERCA PRESENTACION ROLLOS Caracteristica adicional Rollos de 168 metros cotizacion en rollo | J102: unidad | K102: 50 | L102: 10000 | M102: =K102*L102 -> 500000 | N102: 001-Ingresos corrientes
B103: Arquitectura | C103: 789-00 | D103: 20301 | E103: 135 | F103: 000150 | G103: 40171501 | H103: 92037346 | I103: TUBODEACEROGALVANIZADOREDONDODIAMETRO50,80mm,ESPESOR1,8mm,LARGO6,10 mDIAMETRO 50,8 mm ESPESOR 1,8 mm MATERIAL ACERO GALVANIZADO LARGO 6,10 mTIPO REDONDO | J103: Unidad | K103: 50 | L103: 13900 | M103: 695000 | N103: 001-Ingresos corrientes
B104: Arquitectura | C104: 789-00 | D104: 20301 | E104: 090 | F104: 000010 | G104: 30151602 | H104: 92044938 | I104: CUMBRERAESMALTADAHIERROGALVANIZADO#26 DE 305 mm DE ANCHO Y 1,83 m DE LARGOUnidad de empaque UNIDADANCHO 305 mm CALIBRE 26LARGO 1,83 m MATERIAL HIERRO GALVANIZADO PRODUCTO CUMBRERA UTILIDAD TECHOTIPO ESMALTADA | J104: Unidad | K104: 500 | L104: 3900 | M104: 1950000 | N104: 001-Ingresos corrientes
B105: Arquitectura | C105: 789-00 | D105: 20301 | E105: 900 | F105: 000015 | G105: 30181519 | H105: 92040268 | I105: CACHERA(GRIFO)METALICAACABADOCROMADOTIPOCUELODEGANSOCON2MANILLASDEPALANCAPARAUNCAUDALDE2,2Gal/min PARA FREGADEROUnidad de empaque UNIDADACCESORIOS CON 2 MANILLAS DE PALANCA UTILIDAD PARA FREGADERO PRODUCTO CACHERA (GRIFO)MATERIAL ACERO ACABADO CROMADOESTILO CUELLO DE GANSO | J105: Unidad | K105: 100 | L105: 13000 | M105: 1300000 | N105: 001-Ingresos corrientes
B106: Arquitectura | C106: 789-00 | D106: 20301 | E106: 900 | F106: 000015 | G106: 30181519 | H106: 92039944 | I106: CACHERAESTILOCRUZ,PARALAVATORIO,ENACEROINOXIDABLE,CUELLODEGANSODE20cm, 12 cm DE TUBO A TUBOUnidad de empaque UNIDADUTILIDAD PARA LAVATORIO PRODUCTO CACHERA FORMA CRUZ MATERIAL ACERO INOXIDABLE TAMAÑO 20, 12 DE TUBO A TUBO cmESTILO CUELLO DE GANSO | J106: Unidad | K106: 100 | L106: 10000 | M106: 1000000 | N106: 001-Ingresos corrientes
B107: Arquitectura | C107: 789-00 | D107: 20301 | E107: 060 | F107: 000500 | G107: 30101503 | H107: 92041594 | I107: ANGULARDEHIERRONEGROLAMINADOENCALIENTEDE3,17mmDEGRUESOX50,8mmDEPAREDX6mDELARGO(1/8PulgX2PulgX19,68 ft)Unidad de empaque UNIDADASTM A-36GROSOR 3,17 mm LARGO 6 mMATERIALHIERRONEGROLAMINADOENCALIENTE PRODUCTO ANGULAR | J107: Unidad | K107: 100 | L107: 8500 | M107: 850000 | N107: 001-Ingresos corrientes
B108: Arquitectura | C108: 789-00 | D108: 20301 | E108: 080 | F108: 000101 | G108: 30171516 | H108: 92008475 | I108: CEDAZO DE ALUMINIO TIPO MOSQUITERO DE 1,22 m (ancho) SIN CORROCION | J108: Metro | K108: 100 | L108: 1300 | M108: 130000 | N108: 001-Ingresos corrientes
B109: Arquitectura | C109: 789-00 | D109: 20301 | E109: 085 | F109: 000200 | G109: 31162002 | H109: 92076530 | I109: CLAVO DE ACERO CON CABEZA, MEDIDAS 63,5 mm (2 1/2 Pulg) LARGO X 2,7 mm DIAMETRO, PUNTA DIAMANTE, POR UNIDAD, PARA USO EN CONCRETO | J109: Unidad | K109: 1000 | L109: ='[1]AUMENTO ANUAL'!B106 -> 15.75 | M109: 15750 | N109: 001-Ingresos corrientes
B110: Arquitectura | C110: 789-00 | D110: 20301 | E110: 085 | F110: 000005 | G110: 31162004 | H110: 90018899 | I110: CLAVO DE MAMPOSTERIA, ACERO DE 2,5 mm X 25,40 mm | J110: Unidad | K110: 1000 | L110: ='[1]AUMENTO ANUAL'!B104 -> 8.4 | M110: 8400 | N110: 001-Ingresos corrientes
B111: Arquitectura | C111: 789-00 | D111: 20301 | E111: 085 | F111: 000001 | G111: 31162004 | H111: 90018918 | I111: CLAVO DE ACERO DE 2,5 DE 50,80 MM | J111: Unidad | K111: 1000 | L111: ='[1]AUMENTO ANUAL'!B105 -> 12.6 | M111: 12600 | N111: 001-Ingresos corrientes
B112: Arquitectura | C112: 789-00 | D112: 20301 | E112: 085 | F112: 000505 | G112: 31162002 | H112: 92007696 | I112: CLAVO DE HIERRO CON CABEZA (CORRIENTE), MEDIDAS 25,40 mm LARGO, 1,80 mm DIAMETRO | J112: Kilogramo | K112: 1000 | L112: 1100 | M112: 1100000 | N112: 001-Ingresos corrientes
B113: Arquitectura | C113: 789-00 | D113: 20301 | E113: 085 | F113: 000505 | G113: 31162002 | H113: 92046981 | I113: CLAVODEHIERROCONCABEZA(CORRIENTE)DIAMETRODE2mmXLARGODE38,1mm(11/2Pulg) PARA REALIZAR TRABAJOS EN MADERAUnidad de empaque UNIDADDIAMETRO 2 mm TIPO DE MATERIAL HIERROUTILIDAD PARA REALIZAR TRABAJOS EN MADERA PRODUCTO CLAVO DE CON CABEZA (CORRIENTE)presentación en cajas de 23 kilos | J113: Unidad | K113: 500 | L113: 980 | M113: 490000 | N113: 001-Ingresos corrientes
B114: Arquitectura | C114: 789-00 | D114: 20301 | E114: 085 | F114: 000640 | G114: 31162002 | H114: 92007704 | I114: CLAVO DE HIERRO CON CABEZA (CORRIENTE), 50,80 mm (2 Pulg) LARGO, DIAMETRO 3,05 mm | J114: Kilogramo | K114: 500 | L114: 819 | M114: 409500 | N114: 001-Ingresos corrientes
B115: Arquitectura | C115: 789-00 | D115: 20301 | E115: 085 | F115: 000680 | G115: 31162002 | H115: 92007703 | I115: CLAVO DE HIERRO CON CABEZA (CORRIENTE), 63,50 mm (2 1/2 Pulg) LARGO, DIAMETRO 3,40 mm | J115: Kilogramo | K115: 500 | L115: 819 | M115: 409500 | N115: 001-Ingresos corrientes
B116: Arquitectura | C116: 789-00 | D116: 20301 | E116: 085 | F116: 000720 | G116: 31162002 | H116: 92068671 | I116: CLAVO DE HIERRO CON CABEZA CORRIENTE DE 76,2 mm, PRESENTACIÓN DE 1 KG | J116: Unidad | K116: 500 | L116: 819 | M116: 409500 | N116: 001-Ingresos corrientes
B117: Arquitectura | C117: 789-00 | D117: 20301 | E117: 120 | F117: 000769 | G117: 30102203 | H117: 92059778 | I117: PLATINA DE HIERRO, MEDIDAS 38,1 mm (1 1/2 Pulg) X 4,76 mm (3/16 Pulg) GROSOR X 6000 mm (6 m) LARGO | J117: unidad | K117: 50 | L117: 5900 | M117: 295000 | N117: 001-Ingresos corrientes
B118: Arquitectura | C118: 789-00 | D118: 20301 | E118: 900 | F118: 000010 | G118: 31162702 | H118: 92088332 | I118: RODINCONUNDIAMETRODE8cm(+/-1cm)FABRICADOENPOLIURETANO,CONCAPACIDADNO MENOR A 55 kg. | J118: unidad | K118: 50 | L118: 6200 | M118: 310000 | N118: 001-Ingresos corrientes
B119: Arquitectura | C119: 789-00 | D119: 20301 | E119: 100 | F119: 000020 | G119: 30102004 | H119: 90020395 | I119: LAMINA DE ACERO GALVANIZADA (ONDULADA) P/TECHO # 26 1,07 X 3,66 M | J119: Unidad | K119: 50 | L119: 17400 | M119: =K119*L119 -> 870000 | N119: 001-Ingresos corrientes
B120: Arquitectura | C120: 789-00 | D120: 20301 | E120: 100 | F120: 000220 | G120: 30102003 | H120: 92043676 | I120: LAMINA DE HIERRO GALVANIZADA LISA # 26, MEDIDAS 1,22 m ANCHO X 2,44 m LARGO | J120: unidad | K120: 100 | L120: 12000 | M120: =K120*L120 -> 1200000 | N120: 001-Ingresos corrientes
B121: Arquitectura | C121: 789-00 | D121: 20301 | E121: 040 | F121: 000450 | G121: 30102003 | H121: 90003134 | I121: LAMINA DE HIERRO NEGRO DE 3.18 MM X 1.22 X 2.44 MTS | J121: Unidad | K121: 40 | L121: 43000 | M121: 1720000 | N121: 001-Ingresos corrientes
B122: Arquitectura | C122: 789-00 | D122: 20301 | E122: 115 | F122: 000040 | G122: 30102303 | H122: 92017033 | I122: PERFIL ESTRUCTURAL DE HIERRO NEGRO (PERLING) EN C DE 2.38 mm X 50,80 mm X 101,60 mm X 6 m DE LARGO, RT1-13 | J122: Unidad | K122: 50 | L122: 15300 | M122: 765000 | N122: 001-Ingresos corrientes
B123: Arquitectura | C123: 789-00 | D123: 20301 | E123: 115 | F123: 0000001 | G123: 30102303 | H123: 92127464 | I123: PERFILRTDEHIERRONEGRO(PERLIN),MEDIDAS76,2mmX50,8mmX2,38mmDEESPESOR X 6 m LARGOUnidad de empaque UNIDADTAMAÑO 76,2 X 50,8 X 2,38 mm MATERIAL HIERRO NEGROESPESOR 2,38 mm PRODUCTO PERFILTIPO RTLARGO 6 m | J123: unidad | K123: 200 | L123: 14800 | M123: =K123*L123 -> 2960000 | N123: 001-Ingresos corrientes
B124: Arquitectura | C124: 789-00 | D124: 20301 | E124: 135 | F124: 000005 | G124: 30102303 | H124: 92043693 | I124: TUBO CUADRADO INDUSTRIAL DE HIERRO NEGRO DE 50,80 mm (2 Pulg) ALTO x 50,80 mm (2 Pulg) ANCHO X 3,17 mm (1/8 Pulg) ESPESOR X 6 m LARGO | J124: Unidad | K124: 100 | L124: 15500 | M124: 1550000 | N124: 001-Ingresos corrientes
B125: Arquitectura | C125: 789-00 | D125: 20301 | E125: 135 | F125: 001957 | G125: 31102303 | H125: 92040413 | I125: TUBO DE HIERRO NEGRO CUADRADO DE 25,4 mm X 25,4 mm X 1,80 mm GROSOR DE PARED X 6 m LARGO | J125: Unidad | K125: 60 | L125: 6000 | M125: 360000 | N125: 001-Ingresos corrientes
B126: Arquitectura | C126: 789-00 | D126: 20301 | E126: 135 | F126: 000380 | G126: 40171521 | H126: 92053011 | I126: TUBO DE ABASTO, ACERO INOXIDABLE, FLEXIBLE, CONEXIÓN DE 12,7 mm X 19,05 mm PARA INODORO | J126: Unidad | K126: 350 | L126: 1800 | M126: 630000 | N126: 001-Ingresos corrientes
B127: Arquitectura | C127: 789-00 | D127: 20301 | E127: 135 | F127: 001325 | G127: 39121434 | H127: 92038075 | I127: TUBO EMT 1.27CM(1/2 PULGADA)TUBO EMT (12MM)ACERO GALVANIZADO STM A653 G-60) | J127: Unidad | K127: 300 | L127: ='[1]AUMENTO ANUAL'!B126 -> 991.2 | M127: 297360 | N127: 001-Ingresos corrientes
B128: Arquitectura | C128: 789-00 | D128: 20301 | E128: 135 | F128: 001340 | G128: 39121434 | H128: 90003593 | I128: TUBO E.M.T DE 1.90CMS (3/4 PULGADA) (TUBO EMT (18MM)ACERO GALVANIZADO STM A653 G-60) | J128: Unidad | K128: 350 | L128: ='[1]AUMENTO ANUAL'!B127 -> 1306.2 | M128: 457170 | N128: 001-Ingresos corrientes
B129: Arquitectura | C129: 789-00 | D129: 20301 | E129: 135 | F129: 001360 | G129: 39121434 | H129: 92038368 | I129: TUBO E.M.T DE 2.54CMS (1 PULGADA) (TUBO EMT (25MM)ACERO GALVANIZADO STM A653 G-60 | J129: Unidad | K129: 300 | L129: ='[1]AUMENTO ANUAL'!B128 -> 1984.5 | M129: 595350 | N129: 001-Ingresos corrientes
B130: Arquitectura | C130: 789-00 | D130: 20301 | E130: 135 | F130: 000005 | G130: 30102304 | H130: 92115092 | I130: TUBOCUADRADODEACERONEGROALCARBONO,ESPESORDE3,17mm(1/8Pulg)XANCHODE72mmXALTODE72mmXLARGODE6 mUnidad de empaque UNIDADANCHO 72 mmESPESOR 3,17 (1/8) mm (Pulg)FORMA CUADRADOLARGO 6 m LONGITUD ALTO DE 72 mm MATERIAL ACERO NEGRO AL CARBONOPRODUCTO TUBO | J130: Unidad | K130: 51 | L130: 31600 | M130: =K130*L130 -> 1611600 | N130: 001-Ingresos corrientes
B131: Arquitectura | C131: 789-00 | D131: 20301 | E131: 040 | F131: 000012 | G131: 30102003 | H131: 92130839 | I131: LAMINADEHIERRONEGRO,SUPERFICIEEXPANDIDA,FIGURAENTRELAZADADEROMBO,ESPESOR6,35mmXANCHO1220mmXLARGO2440 mmUnidad de empaque UNIDADANCHO 1220 mmGROSOR 6,35 mmTIPO DE MATERIAL HIERRO NEGRO LARGO 2440 mmPRODUCTO LAMINAPRESENTACION HOJA EXPANDIDA | J131: Unidad | K131: 200 | L131: 114912 | M131: =K131*L131 -> 22982400 | N131: 001-Ingresos corrientes
B132: Arquitectura | C132: 789-00 | D132: 20301 | E132: 040 | F132: 000012 | G132: 30102004 | H132: 92031694 | I132: LAMINADEACEROEXPANDIDA,TIPOJORDOMEX,MEDIDAS 1,22 m X 2,44 m X 3 mm, CALIBRE 9Unidad de empaque UNIDADANCHO 2,44 mFORMA EXPANDIDA GROSOR 3 mmLARGO 1,22 m MATERIAL ACEROPRODUCTO LAMINATIPO JORDOMEX | J132: Unidad | K132: 49 | L132: 35015 | M132: =K132*L132 -> 1715735 | N132: 001-Ingresos corrientes
B133: Arquitectura | C133: 789-00 | D133: 20301 | E133: 140 | F133: 000001 | G133: 30101604 | H133: 92032866 | I133: VARILLA DEFORMADA # 3, TAMAÑO 9,7 mm, GRADO 40, PESO 3,3 kg | J133: Unidad | K133: 1000 | L133: 1840 | M133: 1840000 | N133: 001-Ingresos corrientes
B134: Arquitectura | C134: 789-00 | D134: 20301 | E134: 175 | F134: 002400 | G134: 31161504 | H134: 90032615 | I134: TORNILLO PARA METAL CON CABEZA CHATA Nº8 EN CRUZ, DE 2.54cm LARGO | J134: Unidad | K134: 15000 | L134: ='[1]AUMENTO ANUAL'!B72 -> 2.919 | M134: 43785 | N134: 001-Ingresos corrientes
B135: Arquitectura | C135: 789-00 | D135: 20301 | E135: 175 | F135: 000004 | G135: 31161505 | H135: 92004791 | I135: TORNILLO DE ACERO DE PUNTA BROCA FINA DE 38,1 mm X 4,7625 mm (1 ½” X 3/16”) PARA GYPSUM | J135: Unidad | K135: 10000 | L135: 5 | M135: 50000 | N135: 001-Ingresos corrientes
B136: Arquitectura | C136: 789-00 | D136: 20301 | E136: 255 | F136: 000620 | G136: 39121302 | H136: 92154817 | I136: PLACADOBLEPARATOMACORRIENTEDEACEROINOXIDABLEDE115mmDELARGOy70mmDEANCHOUnidad de empaque UNIDADCERTIFICADO U.L.LARGO 115 mm MATERIAL ACERO INOXIDABLE PRODUCTO PLACA DOBLE PARA TOMACORRIENTE | J136: Unidad | K136: 500 | L136: 900 | M136: =K136*L136 -> 450000 | N136: 001-Ingresos corrientes
B137: Arquitectura | C137: 789-00 | D137: 20301 | E137: 140 | F137: 000001 | G137: 30101604 | H137: 92126436 | I137: BARRADEACERO(VARILLALISA)#4DE12,7mm X 6 m GRADO 60Unidad de empaque UNIDADLARGO 6 FORMA LISA MATERIAL ACEROTIPO VARILLA | J137: Unidad | K137: 100 | L137: 3325 | M137: =K137*L137 -> 332500 | N137: 001-Ingresos corrientes
B138: Arquitectura | C138: 789-00 | D138: 20301 | E138: 175 | F138: 000004 | G138: 31161507 | H138: 92011462 | I138: TORNILLODEACEROAUTORROSCANTEDEPUNTABROCACORRIENTEDE31,70mm(11/4")PARA GYPSUNUnidad de empaque UNIDADDIMENSION 31,70 mm FORMA AUTORROSCANTE MATERIAL ACERO PASO CORRIENTE TIPO PUNTA BROCA | J138: Unidad | K138: 15000 | L138: 8.96 | M138: 134400 | N138: 001-Ingresos corrientes
B139: Arquitectura | C139: 789-00 | D139: 20301 | E139: 055 | F139: 000560 | G139: 30102606 | H139: 90033254 | I139: VENILLADEALUMINIONATURALDE1,27cmX1,27cmTIPO PANELEX DIMENSION 1,27 X 1,27 cm MATERIAL ALUMINIO NATURAL PRODUCTO VENILLAUnidad de empaque UNIDAD | J139: Unidad | K139: 15 | L139: 3250 | M139: 48750 | N139: 001-Ingresos corrientes
B140: Arquitectura | C140: 789-00 | D140: 20301 | E140: 175 | F140: 000004 | G140: 31161507 | H140: 92023431 | I140: TORNILLO DE ACERO PUNTA BROCA, CABEZA TIPO PHILLIPS, LARGO 25,40 mm | J140: Unidad | K140: 15000 | L140: 11 | M140: 165000 | N140: 001-Ingresos corrientes
B141: Arquitectura | C141: 789-00 | D141: 20301 | E141: 175 | F141: 002000 | G141: 31161507 | H141: 92110846 | I141: TORNILLO GALVANIZADO NUMERO 8 PARA METAL, LARGO 25,4 mm, PUNTA BROCA, CABEZA PARA DESATORNILLADOR TIPO PHILLIPS | J141: Unidad | K141: 15000 | L141: ='[1]AUMENTO ANUAL'!B75 -> 10.5 | M141: 157500 | N141: 001-Ingresos corrientes
B142: Arquitectura | C142: 789-00 | D142: 20301 | E142: 175 | F142: 002400 | G142: 31161509 | H142: 92110680 | I142: TORNILLO METALICO, MEDIDAS 5,08 cm DE LARGO, 6,35 mm DE GROSOR (2 pulg. x 1/4 pulg.) CABEZA REDONDA PLANA, PARA UTILIZAR EN ESPANDER #10 | J142: Unidad | K142: 15000 | L142: ='[1]AUMENTO ANUAL'!B71 -> 3.15 | M142: 47250 | N142: 001-Ingresos corrientes
B143: Arquitectura | C143: 789-00 | D143: 20301 | E143: 175 | F143: 000004 | G143: 31161509 | H143: 92020146 | I143: TORNILLODEACERO,CABEZAPHILLIPS,LARGO25,4 mm PARA GYPSUMUnidad de empaque UNIDADMATERIAL ACERO CABEZA PHILLIPS lARGO 25,4 mm | J143: Unidad | K143: 15000 | L143: 10.18 | M143: =K143*L143 -> 152700 | N143: 001-Ingresos corrientes
B144: Arquitectura | C144: 789-00 | D144: 20301 | E144: 175 | F144: 000004 | G144: 31161509 | H144: 92059557 | I144: TORNILLODEACEROCABEZAPHILLIPSYPLANA,PUNTABROCAMEDIDASDIAMETRO#6X19,05mm DE LARGO PARA GYPSUMUnidad de empaque UNIDADMATERIAL ACERO CABEZA PLANA Y PHILLIPS TIPO PUNTA BROCA LARGO 19,05 DIMENSIONES DIAMETRO # 6 | J144: Unidad | K144: 15000 | L144: 9.63 | M144: =K144*L144 -> 144450 | N144: 001-Ingresos corrientes
B145: Arquitectura | C145: 789-00 | D145: 20301 | E145: 175 | F145: 002400 | G145: 31161509 | H145: 92110843 | I145: TORNILLO METALICO PUNTRA BROCA, MEDIDAS 5,08 cm DE LARGO X 3,97 mm GROSOR (2 pulg. x 5/32 pulg.), CABEZA PARA DESATORNILLADOR PHILLIPS, TORNILLO PARA GYPSUM. | J145: Unidad | K145: 15000 | L145: ='[1]AUMENTO ANUAL'!B76 -> 16.8 | M145: =K145*L145 -> 252000 | N145: 001-Ingresos corrientes
B146: Arquitectura | C146: 789-00 | D146: 20301 | E146: 175 | F146: 002400 | G146: 31161509 | H146: 92110845 | I146: TORNILLO METALICO, MEDIDAS 4,2 X 12 mm, PUNTA BROCA, PARA GYPSUM (TIPO FRIJOLILLO) | J146: Unidad | K146: 15000 | L146: ='[1]AUMENTO ANUAL'!B95 -> 3.15 | M146: 47250 | N146: 001-Ingresos corrientes
B147: Arquitectura | C147: 789-00 | D147: 20301 | E147: 135 | F147: 000380 | G147: 40142008 | H147: 92094830 | I147: MANGUERADEABASTOENACEROINOXIDABLE,FLEXIBLE,CONEXIONDE12,7mm(1/2Pulg)Y12,7mm(1/2Pulg)X457,2mm(18Pulg)DELARGOUnidad de empaque UNIDADDIAMETRO 12,7 mmLARGO 457,2 mm MATERIAL ACERO INOXIDABLETIPO ABASTO | J147: Unidad | K147: 200 | L147: 1800 | M147: =K147*L147 -> 360000 | N147: 001-Ingresos corrientes
B148: Arquitectura | C148: 789-00 | D148: 20301 | E148: 135 | F148: 150701 | G148: 40142008 | H148: 92090500 | I148: MANGUERADEABASTOENACEROINOXIDABLE,FLEXIBLE,CONEXIONDE12,7mm(1/2Pulg)Y19,05mm(3/4Pulg)X533,4mm(21Pulg)DELARGOUnidad de empaque UNIDADDIMENSION 12,7 Y 19,05 mmLARGO 533,4 mm MATERIAL ACERO INOXIDABLETIPO DE ABASTO | J148: Unidad | K148: 500 | L148: 1800 | M148: =K148*L148 -> 900000 | N148: 001-Ingresos corrientes
B149: Arquitectura | C149: 789-00 | D149: 20301 | E149: 175 | F149: 002960 | G149: 31161512 | H149: 90032623 | I149: TORNILLOPARATECHODEHIERROGALVANIZADODE50,8mm(2Pulg)DELARGOX6,35 mm (1/4 Pulg) DIÁMETROUnidad de empaque UNIDADUTILIDAD PARA TECHO PRODUCTO TORNILLO DIAMETRO 6,35 (1/4) mm (Pulg) LARGO 50,8 (2) mm (Pulg) TIPO PUNTA BROCADISEÑO ARANDELA-EMPAQUE DE NEOPRENOMATERIAL HIERRO GALVANIZADO | J149: Unidad | K149: 1000 | L149: 50 | M149: =K149*L149 -> 50000 | N149: 001-Ingresos corrientes
B150: Arquitectura | C150: 789-00 | D150: 20301 | E150: 175 | F150: 002400 | G150: 31161509 | H150: 92110677 | I150: TORNILLO METALICO, MEDIDAS 3,81 cm LARGO x 6,35 mm GROSOR (1 1/2 x 1/4 Pulg), CABEZA REDONDA PLANA, PARA UTILIZAR EN ESPANDER # 8 | J150: Unidad | K150: 10000 | L150: ='[1]AUMENTO ANUAL'!B70 -> 6.3 | M150: 63000 | N150: 001-Ingresos corrientes
B151: Arquitectura | C151: 789-00 | D151: 20301 | E151: 175 | F151: 002960 | G151: 31161504 | H151: 90009680 | I151: TORNILLOPARATECHOPUNTABROCA2"(U)GALVANIZADO | J151: Unidad | K151: 10000 | L151: 30.5 | M151: 305000 | N151: 001-Ingresos corrientes
B152: Arquitectura | C152: 789-00 | D152: 20301 | E152: 205 | F152: 001505 | G152: 39121409 | H152: 92042214 | I152: CONECTOR(TERMINAL)DERESORTEPARACABLE10-12THNN,600V,TEMPERATURA105C°, COLOR AMARILLOUnidad de empaque UNIDADTIPO RESORTE VOLTAJE 600 VTEMPERATURA 105 C°COLOR AMARILLO UTILIDAD PARA CABLE 10-12 THNN | J152: Unidad | K152: 1000 | L152: 92 | M152: =L152*K152 -> 92000 | N152: 001-Ingresos corrientes
B153: Arquitectura | C153: 789-00 | D153: 20301 | E153: 240 | F153: 000260 | G153: 30101605 | H153: 90040813 | I153: AGARRADERASENTUBOPARABAÑOSYSERVICIOS SANITARIOS PARA DISCAPACITADOS.FORMA TUBO TIPO AGARRADERA Otras especificaciones Medidas de longitud 60.96 Cèntimetros ( 24 pulgadas) | J153: Unidad | K153: 50 | L153: 18000 | M153: 900000 | N153: 001-Ingresos corrientes
B154: Arquitectura | C154: 789-00 | D154: 20301 | E154: 900 | F154: 000600 | G154: 30181605 | H154: 92012407 | I154: DESAGUEPARALAVATORIOENBRONCECROMADO, DE 31.75 mm DE DIAMETROUnidad de empaque UNIDADDIAMETRO 31.75 mm MATERIAL BRONCE CROMADO PRODUCTO DESAGÜE UTILIDAD LAVATORIO | J154: Unidad | K154: 150 | L154: 2600 | M154: 390000 | N154: 001-Ingresos corrientes
B155: Arquitectura | C155: 789-00 | D155: 20301 | E155: 900 | F155: 000600 | G155: 30181605 | H155: 92012404 | I155: Desagüeparafregaderode8.89cmdediámetro(31/2"), en acero inoxidable.Unidad de empaque UNIDADDIAMETRO 8.89 cm MATERIAL ACERO INOXIDABLE PRODUCTO DESAGUE UTILIDAD FREGADERO | J155: Unidad | K155: 100 | L155: 6000 | M155: =K155*L155 -> 600000 | N155: 001-Ingresos corrientes
B156: Arquitectura | C156: 789-00 | D156: 20301 | E156: 900 | F156: 003860 | G156: 39121303 | H156: 92074271 | I156: CAJA RECTANGULAR DE ACERO GALVANIZADO DE 108 mm LARGO, 62 mm ANCHO y 45 mm DIAMETRO PARA TUBERIA ELECTRICA DE 12,7 mm (1/2 Pulg) y 19,05 mm (3/4 Pulg) | J156: Unidad | K156: 500 | L156: 150 | M156: 75000 | N156: 001-Ingresos corrientes
B157: Arquitectura | C157: 789-00 | D157: 20301 | E157: 900 | F157: 000600 | G157: 40142515 | H157: 92073318 | I157: DESAGUE(SIFON)DEACERONIQUELADO,TIPOENS,CONDESCARGAALPISO,DIAMETRODE38,10mm(11/2Pulg),CONEMPAQUESYTUERCASUnidad de empaque UNIDADDIAMETRO DE 38,10 mm MATERIAL DE ACERO NIQUELADO PRODUCTO DESAGUE (SIFON), TIPO EN S | J157: Unidad | K157: 200 | L157: 5445 | M157: 1089000 | N157: 001-Ingresos corrientes
B158: Arquitectura | C158: 789-00 | D158: 20301 | E158: 140 | F158: 000240 | G158: 30101604 | H158: 92006829 | I158: BARRA DE ACERO (VARILLA) (DEFORMADA) # 8 DE 25.40 mm X 6 m GRADO 60 | J158: Unidad | K158: 109 | L158: 12250 | M158: 1335250 | N158: 001-Ingresos corrientes
B159: Arquitectura | C159: 789-00 | D159: 20301 | E159: 001 | F159: 180601 | G159: 31162207 | H159: 90019265 | I159: REMACHEDEALUMINIOESTRUCTURAL,DE3,17mm X 25,40 mm Descripcion adicional presentacion en paquetes de 25 unidades Cotizacion en paquetes de 25 unidades | J159: unidad | K159: 1000 | L159: 12 | M159: =K159*L159 -> 12000 | N159: 001-Ingresos corrientes
B160: Arquitectura | C160: 789-00 | D160: 20302 | E160: 045 | F160: 000050 | G160: 30131502 | H160: 90009775 | I160: BLOCK DE CONCRETO DE 15 X 20 X 40 (U) ENTREGAR EL PRODUCTO EN EL CAI JORGE MONTERO Reforma. | J160: Unidad | K160: 3000 | L160: 560 | M160: 1680000 | N160: 001-Ingresos corrientes
B161: Arquitectura | C161: 789-00 | D161: 20302 | E161: 045 | F161: 000055 | G161: 30131502 | H161: 92010416 | I161: BLOQUE DE CONCRETO, TIPO A, VIBRO COMPACTADO Y CURADO DE 20 cm X 20 cm X 40 cm, ARISTAS RECTAS QUE FORMEN ANGULOS RECTOS ENTREGAR EL PRODUCTO EN EL CAI JORGE MONTERO Reforma. | J161: unidad | K161: 3000 | L161: 720 | M161: 2160000 | N161: 001-Ingresos corrientes
B162: Arquitectura | C162: 789-00 | D162: 20302 | E162: 095 | F162: 000001 | G162: 11111611 | H162: 92009733 | I162: PIEDRA DE 100 A 200 mm PARA GAVION TIPO BOLA . ENTREGAR EL PRODUCTO EN EL CAI JORGE MONTERO Reforma. | J162: Metro cubico | K162: 15 | L162: 30000 | M162: =K162*L162 -> 450000 | N162: 001-Ingresos corrientes
B163: Arquitectura | C163: 789-00 | D163: 20302 | E163: 095 | F163: 000001 | G163: 11111611 | H163: 92009733 | I163: PIEDRA DE 100 A 200 mm PARA GAVION TIPO BOLA . ENTREGAR EL PRODUCTO EN EL CAI Gerardo Rodriguez. | J163: Metro cubico | K163: 15 | L163: 30000 | M163: 450000 | N163: 001-Ingresos corrientes
B164: Arquitectura | C164: 789-00 | D164: 20302 | E164: 095 | F164: 000001 | G164: 11111611 | H164: 92009733 | I164: PIEDRA DE 100 A 200 mm PARA GAVION TIPO BOLA . ENTREGAR EL PRODUCTO EN EL CAI Luis Paulino Mora. | J164: Metro cubico | K164: 15 | L164: 15000 | M164: 225000 | N164: 001-Ingresos corrientes
B165: Arquitectura | C165: 789-00 | D165: 20302 | E165: 095 | F165: 000001 | G165: 11111611 | H165: 92009733 | I165: PIEDRA DE 100 A 200 mm PARA GAVION TIPO BOLA . ENTREGAR EL PRODUCTO EN EL CAI 26 de Julio, Puntarenas. | J165: Metro cubico | K165: 15 | L165: 25000 | M165: 375000 | N165: 001-Ingresos corrientes
B166: Arquitectura | C166: 789-00 | D166: 20302 | E166: 095 | F166: 000001 | G166: 11111611 | H166: 92009733 | I166: PIEDRA DE 100 A 200 mm PARA GAVION TIPO BOLA . ENTREGAR EL PRODUCTO EN EL CAI Nelson Mandela, San Carlos. | J166: Metro cubico | K166: 10 | L166: 25000 | M166: 250000 | N166: 001-Ingresos corrientes
B167: Arquitectura | C167: 789-00 | D167: 20302 | E167: 095 | F167: 000001 | G167: 11111611 | H167: 92009733 | I167: PIEDRA DE 100 A 200 mm PARA GAVION TIPO BOLA . ENTREGAR EL PRODUCTO EN EL CAI Liberia. | J167: Metro cubico | K167: 10 | L167: 25000 | M167: 250000 | N167: 001-Ingresos corrientes
B168: Arquitectura | C168: 789-00 | D168: 20302 | E168: 095 | F168: 000001 | G168: 11111611 | H168: 92009733 | I168: PIEDRA DE 100 A 200 mm PARA GAVION TIPO BOLA . ENTREGAR EL PRODUCTO EN EL CAI Antonio Bastida de Paz, Pérez Zeledón. | J168: Metro cubico | K168: 15 | L168: 25000 | M168: 375000 | N168: 001-Ingresos corrientes
B169: Arquitectura | C169: 789-00 | D169: 20302 | E169: 095 | F169: 000001 | G169: 11111611 | H169: 92009733 | I169: PIEDRA DE 100 A 200 mm PARA GAVION TIPO BOLA . ENTREGAR EL PRODUCTO EN EL CAI Marcus Garvey, Limón. | J169: Metro cubico | K169: 15 | L169: 30000 | M169: 450000 | N169: 001-Ingresos corrientes
B170: Arquitectura | C170: 789-00 | D170: 20302 | E170: 095 | F170: 000001 | G170: 11111611 | H170: 92009733 | I170: PIEDRA DE 100 A 200 mm PARA GAVION TIPO BOLA . ENTREGAR EL PRODUCTO EN EL CAI Jorge Debravo, Cartago. | J170: Metro cubico | K170: 10 | L170: 30000 | M170: 300000 | N170: 001-Ingresos corrientes
B171: Arquitectura | C171: 789-00 | D171: 20302 | E171: 095 | F171: 000001 | G171: 11111611 | H171: 92009733 | I171: PIEDRA DE 100 A 200 mm PARA GAVION TIPO BOLA . ENTREGAR EL PRODUCTO EN EL Centro de Formación Juvenil Zurquí, Heredia. | J171: Metro cubico | K171: 10 | L171: 30000 | M171: 300000 | N171: 001-Ingresos corrientes
B172: Arquitectura | C172: 789-00 | D172: 20302 | E172: 095 | F172: 000001 | G172: 11111611 | H172: 92009733 | I172: PIEDRA DE 100 A 200 mm PARA GAVION TIPO BOLA . ENTREGAR EL PRODUCTO EN EL CAI San José. | J172: Metro cubico | K172: 10 | L172: 30000 | M172: 300000 | N172: 001-Ingresos corrientes
B173: Arquitectura | C173: 789-00 | D173: 20302 | E173: 095 | F173: 000001 | G173: 11111611 | H173: 92009733 | I173: PIEDRA DE 100 A 200 mm PARA GAVION TIPO BOLA . ENTREGAR EL PRODUCTO EN EL CAI Vilma Curling. Buen Pastor | J173: Metro cubico | K173: 10 | L173: 30000 | M173: 300000 | N173: 001-Ingresos corrientes
B174: Arquitectura | C174: 789-00 | D174: 20302 | E174: 095 | F174: 000001 | G174: 11111611 | H174: 92009733 | I174: PIEDRA DE 100 A 200 mm PARA GAVION TIPO BOLA . ENTREGAR EL PRODUCTO EN EL CAI Adulto Mayor. | J174: Metro cubico | K174: 15 | L174: 25000 | M174: 375000 | N174: 001-Ingresos corrientes
B175: Arquitectura | C175: 789-00 | D175: 20302 | E175: 095 | F175: 000001 | G175: 11111611 | H175: 92009733 | I175: PIEDRA DE 100 A 200 mm PARA GAVION TIPO BOLA . ENTREGAR EL PRODUCTO EN EL CAI Carlos Luis Fallas. POCOCI | J175: Metro cubico | K175: 15 | L175: 30000 | M175: 450000 | N175: 001-Ingresos corrientes
B176: Arquitectura | C176: 789-00 | D176: 20302 | E176: 095 | F176: 000001 | G176: 11111611 | H176: 92009733 | I176: PIEDRA DE 100 A 200 mm PARA GAVION TIPO BOLA . ENTREGAR EL PRODUCTO EN EL CAI Ofelia Vicenzi Peñaranda ADULTO JOVEN | J176: Metro cubico | K176: 15 | L176: 25000 | M176: 375000 | N176: 001-Ingresos corrientes
B177: Arquitectura | C177: 789-00 | D177: 20302 | E177: 095 | F177: 000001 | G177: 11111611 | H177: 92009733 | I177: PIEDRA DE 100 A 200 mm PARA GAVION TIPO BOLA . ENTREGAR EL PRODUCTO EN EL CASI Nicoya. | J177: Metro cubico | K177: 15 | L177: 30000 | M177: 450000 | N177: 001-Ingresos corrientes
B178: Arquitectura | C178: 789-00 | D178: 20302 | E178: 095 | F178: 000001 | G178: 11111611 | H178: 92009733 | I178: PIEDRA DE 100 A 200 mm PARA GAVION TIPO BOLA . ENTREGAR EL PRODUCTO EN La Escuela de Capacitación Penitenciaria | J178: Metro cubico | K178: 15 | L178: 30000 | M178: 450000 | N178: 001-Ingresos corrientes
B179: Arquitectura | C179: 789-00 | D179: 20302 | E179: 095 | F179: 000001 | G179: 11111611 | H179: 92009733 | I179: PIEDRA DE 100 A 200 mm PARA GAVION TIPO BOLA . ENTREGAR EL PRODUCTO EN CASI San José. | J179: Metro cubico | K179: 10 | L179: 30000 | M179: 300000 | N179: 001-Ingresos corrientes
B180: Arquitectura | C180: 789-00 | D180: 20302 | E180: 095 | F180: 000001 | G180: 11111611 | H180: 92009733 | I180: PIEDRA DE 100 A 200 mm PARA GAVION TIPO BOLA . ENTREGAR EL PRODUCTO EN CASI de la Mujer. | J180: Metro cubico | K180: 10 | L180: 25000 | M180: 250000 | N180: 001-Ingresos corrientes
B181: Arquitectura | C181: 789-00 | D181: 20302 | E181: 095 | F181: 000001 | G181: 11111611 | H181: 92009733 | I181: PIEDRA DE 100 A 200 mm PARA GAVION TIPO BOLA . ENTREGAR EL PRODUCTO EN CASI de San Ramón. | J181: Metro cubico | K181: 10 | L181: 30000 | M181: 300000 | N181: 001-Ingresos corrientes
B182: Arquitectura | C182: 789-00 | D182: 20302 | E182: 095 | F182: 000001 | G182: 11111611 | H182: 92009733 | I182: PIEDRA DE 100 A 200 mm PARA GAVION TIPO BOLA . ENTREGAR EL PRODUCTO EN CASI San Agustín. | J182: Metro cubico | K182: 10 | L182: 30000 | M182: 300000 | N182: 001-Ingresos corrientes
B183: Arquitectura | C183: 789-00 | D183: 20302 | E183: 095 | F183: 000001 | G183: 11111611 | H183: 92009733 | I183: PIEDRA DE 100 A 200 mm PARA GAVION TIPO BOLA . ENTREGAR EL PRODUCTO EN CASI San Luis. | J183: Metro cubico | K183: 10 | L183: 25000 | M183: 250000 | N183: 001-Ingresos corrientes
B184: Arquitectura | C184: 789-00 | D184: 20302 | E184: 095 | F184: 000001 | G184: 11111611 | H184: 92009733 | I184: PIEDRA DE 100 A 200 mm PARA GAVION TIPO BOLA . ENTREGAR EL PRODUCTO EN CASI Liberia. | J184: Metro cubico | K184: 10 | L184: 15000 | M184: 150000 | N184: 001-Ingresos corrientes
B185: Arquitectura | C185: 789-00 | D185: 20302 | E185: 095 | F185: 000001 | G185: 11111611 | H185: 92009733 | I185: PIEDRA DE 100 A 200 mm PARA GAVION TIPO BOLA . ENTREGAR EL PRODUCTO EN CASI Puntarenas | J185: Metro cubico | K185: 10 | L185: 25000 | M185: 250000 | N185: 001-Ingresos corrientes
B186: Arquitectura | C186: 789-00 | D186: 20302 | E186: 095 | F186: 000001 | G186: 11111611 | H186: 92009733 | I186: PIEDRA DE 100 A 200 mm PARA GAVION TIPO BOLA . ENTREGAR EL PRODUCTO EN CASI Limón | J186: Metro cubico | K186: 10 | L186: 25000 | M186: 250000 | N186: 001-Ingresos corrientes
B187: Arquitectura | C187: 789-00 | D187: 20302 | E187: 095 | F187: 000001 | G187: 11111611 | H187: 92009733 | I187: PIEDRA DE 100 A 200 mm PARA GAVION TIPO BOLA . ENTREGAR EL PRODUCTO EN CASI Perez Zeledón | J187: Metro cubico | K187: 10 | L187: 30000 | M187: 300000 | N187: 001-Ingresos corrientes
B188: Arquitectura | C188: 789-00 | D188: 20302 | E188: 095 | F188: 000001 | G188: 11111611 | H188: 92009733 | I188: PIEDRA DE 100 A 200 mm PARA GAVION TIPO BOLA . ENTREGAR EL PRODUCTO EN CASI Cartago | J188: Metro cubico | K188: 10 | L188: 25000 | M188: 250000 | N188: 001-Ingresos corrientes
B189: Arquitectura | C189: 789-00 | D189: 20302 | E189: 095 | F189: 000001 | G189: 11111611 | H189: 92009733 | I189: PIEDRA DE 100 A 200 mm PARA GAVION TIPO BOLA . ENTREGAR EL PRODUCTO EN CASI Finca la Paz | J189: Metro cubico | K189: 10 | L189: 30000 | M189: 300000 | N189: 001-Ingresos corrientes
B190: Arquitectura | C190: 789-00 | D190: 20302 | E190: 095 | F190: 000001 | G190: 11111611 | H190: 92009733 | I190: PIEDRA DE 100 A 200 mm PARA GAVION TIPO BOLA . ENTREGAR EL PRODUCTO EN UAI Reynaldo Villalobos | J190: Metro cubico | K190: 10 | L190: 25000 | M190: 250000 | N190: 001-Ingresos corrientes
B191: Arquitectura | C191: 789-00 | D191: 20302 | E191: 095 | F191: 000001 | G191: 11111611 | H191: 92009733 | I191: PIEDRA DE 100 A 200 mm PARA GAVION TIPO BOLA . ENTREGAR EL PRODUCTO EN UAI 20 de diciembre | J191: Metro cubico | K191: 10 | L191: 25000 | M191: 250000 | N191: 001-Ingresos corrientes
B192: Arquitectura | C192: 789-00 | D192: 20302 | E192: 095 | F192: 000001 | G192: 11111611 | H192: 92009733 | I192: PIEDRA DE 100 A 200 mm PARA GAVION TIPO BOLA . ENTREGAR EL PRODUCTO EN UAI Pabru Presberi | J192: Metro cubico | K192: 10 | L192: 15000 | M192: 150000 | N192: 001-Ingresos corrientes
B193: Arquitectura | C193: 789-00 | D193: 20302 | E193: 095 | F193: 000001 | G193: 11111611 | H193: 92009733 | I193: PIEDRA DE 100 A 200 mm PARA GAVION TIPO BOLA . ENTREGAR EL PRODUCTO EN el Nivel en Comunidad de Ciudad Neilly | J193: Metro cubico | K193: 10 | L193: 30000 | M193: 300000 | N193: 001-Ingresos corrientes
B194: Arquitectura | C194: 789-00 | D194: 20302 | E194: 095 | F194: 000001 | G194: 11111611 | H194: 92009733 | I194: PIEDRA DE 100 A 200 mm PARA GAVION TIPO BOLA . ENTREGAR EL PRODUCTO EN el Nivel en Comunidad de San José | J194: Metro cubico | K194: 10 | L194: 25000 | M194: 250000 | N194: 001-Ingresos corrientes
B195: Arquitectura | C195: 789-00 | D195: 20302 | E195: 095 | F195: 000001 | G195: 11111611 | H195: 92009733 | I195: PIEDRA DE 100 A 200 mm PARA GAVION TIPO BOLA . ENTREGAR EL PRODUCTO EN el Nivel en Comunidad de Liberia | J195: Metro cubico | K195: 10 | L195: 25000 | M195: 250000 | N195: 001-Ingresos corrientes
B196: Arquitectura | C196: 789-00 | D196: 20302 | E196: 095 | F196: 000001 | G196: 11111611 | H196: 92009733 | I196: PIEDRA DE 100 A 200 mm PARA GAVION TIPO BOLA . ENTREGAR EL PRODUCTO EN el Nivel en Comunidad de Nicoya | J196: Metro cubico | K196: 10 | L196: 15000 | M196: 150000 | N196: 001-Ingresos corrientes
B197: Arquitectura | C197: 789-00 | D197: 20302 | E197: 095 | F197: 000001 | G197: 11111611 | H197: 92009733 | I197: PIEDRA DE 100 A 200 mm PARA GAVION TIPO BOLA . ENTREGAR EL PRODUCTO EN el Nivel en Comunidad de Puntarenas | J197: Metro cubico | K197: 10 | L197: 25000 | M197: 250000 | N197: 001-Ingresos corrientes
B198: Arquitectura | C198: 789-00 | D198: 20302 | E198: 095 | F198: 000001 | G198: 11111611 | H198: 92009733 | I198: PIEDRA DE 100 A 200 mm PARA GAVION TIPO BOLA . ENTREGAR EL PRODUCTO EN el Nivel en Comunidad de Perez Zeledón | J198: Metro cubico | K198: 10 | L198: 25000 | M198: 250000 | N198: 001-Ingresos corrientes
B199: Arquitectura | C199: 789-00 | D199: 20302 | E199: 095 | F199: 000001 | G199: 11111611 | H199: 92009733 | I199: PIEDRA DE 100 A 200 mm PARA GAVION TIPO BOLA . ENTREGAR EL PRODUCTO EN el Nivel en Comunidad de Limón | J199: Metro cubico | K199: 10 | L199: 25000 | M199: 250000 | N199: 001-Ingresos corrientes
B200: Arquitectura | C200: 789-00 | D200: 20302 | E200: 095 | F200: 000001 | G200: 11111611 | H200: 92009733 | I200: PIEDRA DE 100 A 200 mm PARA GAVION TIPO BOLA . ENTREGAR EL PRODUCTO EN EL MINISTERIO DE JUSTICIA Y PAZ OFICINAS CENTRALES | J200: Metro cubico | K200: 10 | L200: 30000 | M200: 300000 | N200: 001-Ingresos corrientes
B201: Arquitectura | C201: 789-00 | D201: 20302 | E201: 300 | F201: 000300 | G201: 30131704 | H201: 92158285 | I201: BALDOSA DE CERÁMICA, MEDIDAS 33 cm LARGO X 33 cm ANCHO, PRESENTACIÓN m2 Marca Nacional Modelo 33 X 33 El diseño, estilo y color será escogido por la Administración | J201: Unidad | K201: 50 | L201: 4857 | M201: 242850 | N201: 001-Ingresos corrientes
... 2076 more rows
